[Event "Titled Tuesday Blitz April 4 Early 2023"]
[White "Maksimovic, Bojan"]
[Black "Hirneise, Jens"]
[WhiteFideId "14408120"]
[BlackFideId "24614734"]
[WhiteElo "2468"]
[BlackElo "2345"]
[Result "1/2-1/2"]
[Round "07"]
[TimeControl "180+2"]
[Date "2023.04.04"]
[WhiteClock "0:01:18"]
[BlackClock "0:00:46"]

1. e4 {[%clk 0:03:00]}  d5 {[%clk 0:02:51]} 2. exd5 {[%clk 0:02:58]}  Qxd5 {[%clk 0:02:51]} 3. Nc3 {[%clk 0:02:59]}  Qa5 {[%clk 0:02:50]} 4. d4 {[%clk 0:03:00]}  Nf6 {[%clk 0:02:48]} 5. Nf3 {[%clk 0:03:00]}  c6 {[%clk 0:02:49]} 6. Bc4 {[%clk 0:03:00]}  Bf5 {[%clk 0:02:48]} 7. Bd2 {[%clk 0:03:00]}  e6 {[%clk 0:02:46]} 8. Nd5 {[%clk 0:03:01]}  Qd8 {[%clk 0:02:45]} 9. Nxf6+ {[%clk 0:03:02]}  gxf6 {[%clk 0:02:44]} 10. O-O {[%clk 0:02:57]}  Bd6 {[%clk 0:02:40]} 11. Re1 {[%clk 0:02:57]}  O-O {[%clk 0:02:36]} 12. Nh4 {[%clk 0:02:54]}  Bg6 {[%clk 0:02:34]} 13. c3 {[%clk 0:02:55]}  Re8 {[%clk 0:02:24]} 14. Qf3 {[%clk 0:02:55]}  Nd7 {[%clk 0:02:22]} 15. g3 {[%clk 0:02:54]}  f5 {[%clk 0:02:15]} 16. Nxg6 {[%clk 0:02:54]}  hxg6 {[%clk 0:02:14]} 17. h4 {[%clk 0:02:55]}  Nf6 {[%clk 0:02:12]} 18. Kg2 {[%clk 0:02:56]}  Kg7 {[%clk 0:02:10]} 19. Bg5 {[%clk 0:02:56]}  Be7 {[%clk 0:02:09]} 20. a4 {[%clk 0:02:30]}  a5 {[%clk 0:02:06]} 21. Rad1 {[%clk 0:02:30]}  Rh8 {[%clk 0:01:55]} 22. Bf4 {[%clk 0:02:28]}  Nd5 {[%clk 0:01:47]} 23. Bc1 {[%clk 0:02:26]}  Bf6 {[%clk 0:01:46]} 24. Rh1 {[%clk 0:02:26]}  Rh5 {[%clk 0:01:43]} 25. Be2 {[%clk 0:02:23]}  Rh7 {[%clk 0:01:38]} 26. Qd3 {[%clk 0:02:17]}  Nb6 {[%clk 0:01:28]} 27. Bf3 {[%clk 0:02:17]}  Nxa4 {[%clk 0:01:18]} 28. c4 {[%clk 0:02:17]}  Nb6 {[%clk 0:01:16]} 29. Qb3 {[%clk 0:02:17]}  a4 {[%clk 0:01:15]} 30. Qb4 {[%clk 0:02:17]}  Be7 {[%clk 0:01:15]} 31. c5 {[%clk 0:02:17]}  Nd5 {[%clk 0:01:14]} 32. Qxb7 {[%clk 0:02:17]}  Qc8 {[%clk 0:01:12]} 33. Qxc8 {[%clk 0:02:06]}  Rxc8 {[%clk 0:01:13]} 34. Rd3 {[%clk 0:02:07]}  Rb8 {[%clk 0:01:12]} 35. Ra3 {[%clk 0:02:08]}  Rb4 {[%clk 0:01:12]} 36. Rd1 {[%clk 0:02:08]}  Bf6 {[%clk 0:01:12]} 37. Rad3 {[%clk 0:02:03]}  Rh8 {[%clk 0:01:06]} 38. Kf1 {[%clk 0:01:39]}  Rhb8 {[%clk 0:01:03]} 39. Kg2 {[%clk 0:01:40]}  Rb3 {[%clk 0:01:03]} 40. Kf1 {[%clk 0:01:37]}  Rxd3 {[%clk 0:01:02]} 41. Rxd3 {[%clk 0:01:38]}  Rb4 {[%clk 0:01:03]} 42. Bd1 {[%clk 0:01:30]}  Rxd4 {[%clk 0:01:01]} 43. Rxd4 {[%clk 0:01:30]}  Bxd4 {[%clk 0:01:02]} 44. Bxa4 {[%clk 0:01:30]}  Bxc5 {[%clk 0:01:02]} 45. Bxc6 {[%clk 0:01:31]}  Nb4 {[%clk 0:00:59]} 46. Bb5 {[%clk 0:01:31]}  Bd4 {[%clk 0:00:59]} 47. Ke2 {[%clk 0:01:31]}  Na2 {[%clk 0:00:54]} 48. Be3 {[%clk 0:01:14]}  Bxb2 {[%clk 0:00:53]} 49. Kd3 {[%clk 0:01:15]}  Nb4+ {[%clk 0:00:51]} 50. Ke2 {[%clk 0:01:13]}  Nd5 {[%clk 0:00:51]} 51. Bd2 {[%clk 0:01:13]}  Nc3+ {[%clk 0:00:47]} 52. Bxc3+ {[%clk 0:01:14]}  Bxc3 {[%clk 0:00:48]} 53. f4 {[%clk 0:01:14]}  Bb4 {[%clk 0:00:46]} 54. Kf3 {[%clk 0:01:15]}  Be1 {[%clk 0:00:46]} 55. Ba4 {[%clk 0:01:15]}  Kf6 {[%clk 0:00:46]} 56. Bb3 {[%clk 0:01:15]}  Ke7 {[%clk 0:00:46]} 57. Bc4 {[%clk 0:01:16]}  Kf6 {[%clk 0:00:45]} 58. Bb3 {[%clk 0:01:16]}  Kg7 {[%clk 0:00:46]} 59. Bc4 {[%clk 0:01:17]}  Kf6 {[%clk 0:00:46]} 60. Bb3 {[%clk 0:01:18]} 1/2-1/2


[Site "https://www.chess.com"]

[Event "Titled Tuesday Blitz April 4 Early 2023"]
[White "Iliaguev, Nisim"]
[Black "Gurevich, Dmitry"]
[WhiteFideId "2817276"]
[BlackFideId "2000407"]
[WhiteElo "2241"]
[BlackElo "2506"]
[Result "0-1"]
[Round "07"]
[TimeControl "180+2"]
[Date "2023.04.04"]
[WhiteClock "0:00:54"]
[BlackClock "0:00:23"]

1. d4 {[%clk 0:02:57]}  Nf6 {[%clk 0:02:59]} 2. g3 {[%clk 0:02:55]}  c5 {[%clk 0:02:58]} 3. Nf3 {[%clk 0:02:55]}  b6 {[%clk 0:02:52]} 4. Bg2 {[%clk 0:02:53]}  Bb7 {[%clk 0:02:52]} 5. O-O {[%clk 0:02:54]}  cxd4 {[%clk 0:02:51]} 6. Qxd4 {[%clk 0:02:54]}  g6 {[%clk 0:02:49]} 7. e4 {[%clk 0:02:44]}  d6 {[%clk 0:02:42]} 8. e5 {[%clk 0:02:42]}  dxe5 {[%clk 0:02:38]} 9. Qxd8+ {[%clk 0:02:42]}  Kxd8 {[%clk 0:02:37]} 10. Nxe5 {[%clk 0:02:43]}  Bxg2 {[%clk 0:02:36]} 11. Kxg2 {[%clk 0:02:43]}  Ke8 {[%clk 0:02:36]} 12. c4 {[%clk 0:02:41]}  Nbd7 {[%clk 0:02:33]} 13. Bf4 {[%clk 0:02:41]}  Nh5 {[%clk 0:02:23]} 14. Nxd7 {[%clk 0:02:41]}  Nxf4+ {[%clk 0:02:23]} 15. gxf4 {[%clk 0:02:41]}  Kxd7 {[%clk 0:02:23]} 16. Nc3 {[%clk 0:02:42]}  Bg7 {[%clk 0:02:20]} 17. Rad1+ {[%clk 0:02:40]}  Ke8 {[%clk 0:02:17]} 18. Nd5 {[%clk 0:02:36]}  Rc8 {[%clk 0:02:15]} 19. b3 {[%clk 0:02:36]}  e6 {[%clk 0:02:14]} 20. Rfe1 {[%clk 0:02:35]}  h5 {[%clk 0:02:08]} 21. Kf3 {[%clk 0:02:35]}  Kf8 {[%clk 0:02:05]} 22. Ne3 {[%clk 0:02:29]}  Bf6 {[%clk 0:02:04]} 23. Rd7 {[%clk 0:02:28]}  a6 {[%clk 0:01:48]} 24. Rb7 {[%clk 0:02:27]}  b5 {[%clk 0:01:45]} 25. cxb5 {[%clk 0:02:27]}  axb5 {[%clk 0:01:45]} 26. Rxb5 {[%clk 0:02:28]}  Kg7 {[%clk 0:01:43]} 27. Rd1 {[%clk 0:02:27]}  Rc7 {[%clk 0:01:42]} 28. a4 {[%clk 0:02:27]}  Ra8 {[%clk 0:01:36]} 29. a5 {[%clk 0:02:22]}  Raa7 {[%clk 0:01:23]} 30. b4 {[%clk 0:02:18]}  Rc3 {[%clk 0:01:21]} 31. Rb1 {[%clk 0:02:15]}  Ra3 {[%clk 0:01:10]} 32. Kg2 {[%clk 0:02:10]}  Rc7 {[%clk 0:01:07]} 33. Rb8 {[%clk 0:02:00]}  Bd4 {[%clk 0:01:02]} 34. Kf3 {[%clk 0:01:44]}  Rcc3 {[%clk 0:00:55]} 35. Re1 {[%clk 0:01:44]}  Rcb3 {[%clk 0:00:50]} 36. Ke4 {[%clk 0:01:28]}  Ba7 {[%clk 0:00:33]} 37. Rb7 {[%clk 0:01:28]}  Rxa5 {[%clk 0:00:32]} 38. Nc4 {[%clk 0:01:22]}  Ra4 {[%clk 0:00:28]} 39. Rd1 {[%clk 0:00:56]}  Rbxb4 {[%clk 0:00:28]} 40. Rxb4 {[%clk 0:00:56]}  Rxb4 {[%clk 0:00:28]} 41. Kd3 {[%clk 0:00:56]}  Bxf2 {[%clk 0:00:26]} 42. Rf1 {[%clk 0:00:54]}  Bc5 {[%clk 0:00:26]} 43. Ne5 {[%clk 0:00:54]}  Bd6 {[%clk 0:00:23]} 0-1


[Site "https://www.chess.com"]

[Event "Titled Tuesday Blitz April 4 Early 2023"]
[White "Kowalczyk, Pawel"]
[Black "Tifferet, Shaked"]
[WhiteFideId "1130641"]
[BlackFideId "2811529"]
[WhiteElo "2324"]
[BlackElo "2142"]
[Result "1-0"]
[Round "07"]
[TimeControl "180+2"]
[Date "2023.04.04"]
[WhiteClock "0:02:27"]
[BlackClock "0:01:07"]

1. f4 {[%clk 0:03:00]}  e6 {[%clk 0:02:54]} 2. Nf3 {[%clk 0:03:00]}  b6 {[%clk 0:02:53]} 3. g3 {[%clk 0:02:58]}  Bb7 {[%clk 0:02:53]} 4. Bg2 {[%clk 0:02:59]}  h5 {[%clk 0:02:53]} 5. O-O {[%clk 0:02:58]}  Bc5+ {[%clk 0:02:50]} 6. d4 {[%clk 0:02:51]}  Be7 {[%clk 0:02:48]} 7. c4 {[%clk 0:02:49]}  Nf6 {[%clk 0:02:44]} 8. Nc3 {[%clk 0:02:48]}  Ne4 {[%clk 0:02:43]} 9. Qc2 {[%clk 0:02:45]}  Nxc3 {[%clk 0:02:42]} 10. bxc3 {[%clk 0:02:45]}  Nc6 {[%clk 0:02:20]} 11. e4 {[%clk 0:02:43]}  Na5 {[%clk 0:02:20]} 12. f5 {[%clk 0:02:39]}  Nxc4 {[%clk 0:02:18]} 13. fxe6 {[%clk 0:02:36]}  fxe6 {[%clk 0:02:17]} 14. e5 {[%clk 0:02:35]}  d5 {[%clk 0:01:39]} 15. Qg6+ {[%clk 0:02:29]}  Kd7 {[%clk 0:01:37]} 16. Bh3 {[%clk 0:02:29]}  Qg8 {[%clk 0:01:29]} 17. Ng5 {[%clk 0:02:28]}  Bxg5 {[%clk 0:01:26]} 18. Rf7+ {[%clk 0:02:28]}  Qxf7 {[%clk 0:01:15]} 19. Qxf7+ {[%clk 0:02:27]}  Be7 {[%clk 0:01:14]} 20. Qxe6+ {[%clk 0:02:27]}  Kd8 {[%clk 0:01:07]} 21. Qd7# {[%clk 0:02:27]} 1-0


[Site "https://www.chess.com"]

[Event "Titled Tuesday Blitz April 4 Early 2023"]
[White "UNSTOPPABLE_LEGEND"]
[Black "Sokolovsky, Yahli"]
[BlackFideId "2820242"]
[WhiteElo "2513"]
[BlackElo "2316"]
[Result "0-1"]
[Round "07"]
[TimeControl "180+2"]
[Date "2023.04.04"]
[WhiteClock "0:02:10"]
[BlackClock "0:00:18"]

1. e3 {[%clk 0:03:00]}  e5 {[%clk 0:02:36]} 2. a3 {[%clk 0:03:01]}  d5 {[%clk 0:02:27]} 3. Ne2 {[%clk 0:03:02]}  Nf6 {[%clk 0:02:27]} 4. Nec3 {[%clk 0:03:03]}  d4 {[%clk 0:02:26]} 5. Na2 {[%clk 0:03:04]}  Nc6 {[%clk 0:02:24]} 6. Be2 {[%clk 0:03:03]}  Bf5 {[%clk 0:02:22]} 7. O-O {[%clk 0:03:03]}  Bd6 {[%clk 0:02:21]} 8. d3 {[%clk 0:02:59]}  Qe7 {[%clk 0:02:12]} 9. exd4 {[%clk 0:03:00]}  Nxd4 {[%clk 0:02:12]} 10. Nd2 {[%clk 0:02:57]}  O-O-O {[%clk 0:02:10]} 11. Nc3 {[%clk 0:02:57]}  Bc5 {[%clk 0:01:36]} 12. Nf3 {[%clk 0:02:55]}  Rhe8 {[%clk 0:01:14]} 13. Be3 {[%clk 0:02:47]}  e4 {[%clk 0:01:08]} 14. Nxd4 {[%clk 0:02:46]}  Bxd4 {[%clk 0:01:07]} 15. Bxd4 {[%clk 0:02:47]}  Rxd4 {[%clk 0:01:07]} 16. Re1 {[%clk 0:02:43]}  exd3 {[%clk 0:01:03]} 17. Bxd3 {[%clk 0:02:41]}  Qxe1+ {[%clk 0:01:01]} 18. Qxe1 {[%clk 0:02:42]}  Rxe1+ {[%clk 0:01:01]} 19. Rxe1 {[%clk 0:02:41]}  Bxd3 {[%clk 0:01:02]} 20. Rd1 {[%clk 0:02:41]}  Nd5 {[%clk 0:00:39]} 21. Nxd5 {[%clk 0:02:40]}  Rxd5 {[%clk 0:00:40]} 22. Rxd3 {[%clk 0:02:32]}  Rxd3 {[%clk 0:00:36]} 23. cxd3 {[%clk 0:02:33]}  Kd7 {[%clk 0:00:37]} 24. Kf1 {[%clk 0:02:33]}  Kd6 {[%clk 0:00:37]} 25. Ke2 {[%clk 0:02:34]}  Kd5 {[%clk 0:00:38]} 26. Ke3 {[%clk 0:02:33]}  c5 {[%clk 0:00:36]} 27. f4 {[%clk 0:02:31]}  f5 {[%clk 0:00:34]} 28. a4 {[%clk 0:02:28]}  b6 {[%clk 0:00:32]} 29. h3 {[%clk 0:02:27]}  h5 {[%clk 0:00:23]} 30. h4 {[%clk 0:02:25]}  g6 {[%clk 0:00:23]} 31. g3 {[%clk 0:02:20]}  a6 {[%clk 0:00:16]} 32. b3 {[%clk 0:02:19]}  b5 {[%clk 0:00:16]} 33. a5 {[%clk 0:02:16]}  c4 {[%clk 0:00:16]} 34. b4 {[%clk 0:02:13]}  c3 {[%clk 0:00:16]} 35. d4 {[%clk 0:02:10]}  c2 {[%clk 0:00:16]} 36. Kd2 {[%clk 0:02:10]}  Kxd4 {[%clk 0:00:17]} 37. Kxc2 {[%clk 0:02:10]}  Kc4 {[%clk 0:00:18]} 0-1


[Site "https://www.chess.com"]

[Event "Titled Tuesday Blitz April 4 Early 2023"]
[White "Namitbir Singh Walia"]
[Black "Jakubowski, Krzysztof"]
[WhiteFideId "35071068"]
[BlackFideId "1112848"]
[WhiteElo "2239"]
[BlackElo "2359"]
[Result "1-0"]
[Round "07"]
[TimeControl "180+2"]
[Date "2023.04.04"]
[WhiteClock "0:00:06"]
[BlackClock "0:00:01"]

1. e4 {[%clk 0:03:00]}  c5 {[%clk 0:02:59]} 2. Nf3 {[%clk 0:03:00]}  e6 {[%clk 0:02:58]} 3. d4 {[%clk 0:03:00]}  cxd4 {[%clk 0:02:58]} 4. Nxd4 {[%clk 0:03:01]}  Nc6 {[%clk 0:02:58]} 5. Nb5 {[%clk 0:03:01]}  d6 {[%clk 0:02:55]} 6. c4 {[%clk 0:03:01]}  Nf6 {[%clk 0:02:55]} 7. N1c3 {[%clk 0:03:01]}  a6 {[%clk 0:02:54]} 8. Na3 {[%clk 0:03:00]}  b6 {[%clk 0:02:53]} 9. Be2 {[%clk 0:02:58]}  Bb7 {[%clk 0:02:53]} 10. Be3 {[%clk 0:02:58]}  Rb8 {[%clk 0:02:39]} 11. O-O {[%clk 0:02:56]}  Be7 {[%clk 0:02:38]} 12. Rc1 {[%clk 0:02:50]}  h5 {[%clk 0:02:30]} 13. f3 {[%clk 0:02:47]}  h4 {[%clk 0:02:29]} 14. Qd2 {[%clk 0:02:47]}  h3 {[%clk 0:02:25]} 15. g3 {[%clk 0:02:46]}  Nd7 {[%clk 0:02:19]} 16. Rfd1 {[%clk 0:02:45]}  g5 {[%clk 0:02:10]} 17. Nc2 {[%clk 0:02:27]}  Nce5 {[%clk 0:01:37]} 18. Nd4 {[%clk 0:02:18]}  Rc8 {[%clk 0:01:34]} 19. b3 {[%clk 0:02:16]}  Nc5 {[%clk 0:01:16]} 20. Qc2 {[%clk 0:01:48]}  Rg8 {[%clk 0:01:01]} 21. Kh1 {[%clk 0:01:41]}  g4 {[%clk 0:00:38]} 22. f4 {[%clk 0:01:40]}  Nxe4 {[%clk 0:00:24]} 23. Nxe4 {[%clk 0:01:38]}  f5 {[%clk 0:00:24]} 24. Kg1 {[%clk 0:00:56]}  Bxe4 {[%clk 0:00:22]} 25. Qb2 {[%clk 0:00:55]}  Nf7 {[%clk 0:00:11]} 26. c5 {[%clk 0:00:40]}  bxc5 {[%clk 0:00:09]} 27. Nxe6 {[%clk 0:00:38]}  Qb6 {[%clk 0:00:06]} 28. Bd3 {[%clk 0:00:31]}  Ba8 {[%clk 0:00:05]} 29. Ng7+ {[%clk 0:00:18]}  Rxg7 {[%clk 0:00:05]} 30. Qxg7 {[%clk 0:00:18]}  Qc6 {[%clk 0:00:05]} 31. Kf1 {[%clk 0:00:15]}  Qh1+ {[%clk 0:00:02]} 32. Ke2 {[%clk 0:00:10]}  Qxh2+ {[%clk 0:00:02]} 33. Bf2 {[%clk 0:00:10]}  Bf3+ {[%clk 0:00:02]} 34. Ke3 {[%clk 0:00:10]}  Bf8 {[%clk 0:00:01]} 35. Qf6 {[%clk 0:00:09]}  d5 {[%clk 0:00:01]} 36. Rf1 {[%clk 0:00:06]}  d4+ {[%clk 0:00:01]} 37. Kd2 {[%clk 0:00:07]}  Be7 {[%clk 0:00:01]} 38. Qg7 {[%clk 0:00:06]}  Bg2 {[%clk 0:00:01]} 39. Bxf5 {[%clk 0:00:06]}  Bxf1 {[%clk 0:00:01]} 40. Rxf1 {[%clk 0:00:06]}  Bf8 {[%clk 0:00:01]} 41. Qf6 {[%clk 0:00:06]}  Qg2 {[%clk 0:00:01]} 42. Ke1 {[%clk 0:00:06]}  Qf3 {[%clk 0:00:01]} 43. Qe6+ {[%clk 0:00:06]} 1-0


[Site "https://www.chess.com"]

[Event "Titled Tuesday Blitz April 4 Early 2023"]
[White "Poliakova, Varvara"]
[Black "Przybylski, Wojciech"]
[WhiteFideId "13518313"]
[BlackFideId "1117599"]
[WhiteElo "2075"]
[BlackElo "2222"]
[Result "1-0"]
[Round "07"]
[TimeControl "180+2"]
[Date "2023.04.04"]
[WhiteClock "0:01:04"]
[BlackClock "0:00:09"]

1. e4 {[%clk 0:02:57]}  e5 {[%clk 0:02:57]} 2. d4 {[%clk 0:02:55]}  exd4 {[%clk 0:02:55]} 3. c3 {[%clk 0:02:55]}  d5 {[%clk 0:02:53]} 4. Qxd4 {[%clk 0:02:53]}  Nf6 {[%clk 0:02:51]} 5. Bg5 {[%clk 0:02:53]}  dxe4 {[%clk 0:02:50]} 6. Qxd8+ {[%clk 0:02:51]}  Kxd8 {[%clk 0:02:51]} 7. Nd2 {[%clk 0:02:50]}  Bf5 {[%clk 0:02:49]} 8. O-O-O {[%clk 0:02:50]}  Nd7 {[%clk 0:02:46]} 9. Bc4 {[%clk 0:02:48]}  Ke8 {[%clk 0:02:45]} 10. Ne2 {[%clk 0:02:46]}  h6 {[%clk 0:02:42]} 11. Bh4 {[%clk 0:02:46]}  g5 {[%clk 0:02:41]} 12. Bg3 {[%clk 0:02:44]}  c5 {[%clk 0:02:38]} 13. f3 {[%clk 0:02:38]}  Be7 {[%clk 0:02:28]} 14. Nxe4 {[%clk 0:02:34]}  Nxe4 {[%clk 0:02:24]} 15. fxe4 {[%clk 0:02:35]}  Be6 {[%clk 0:02:20]} 16. Bxe6 {[%clk 0:02:32]}  fxe6 {[%clk 0:02:20]} 17. Ng1 {[%clk 0:02:23]}  Nf6 {[%clk 0:02:16]} 18. Nf3 {[%clk 0:02:21]}  Nxe4 {[%clk 0:02:14]} 19. Rhe1 {[%clk 0:02:17]}  Nxg3 {[%clk 0:02:13]} 20. hxg3 {[%clk 0:02:16]}  g4 {[%clk 0:02:00]} 21. Ne5 {[%clk 0:02:14]}  Bg5+ {[%clk 0:01:59]} 22. Kc2 {[%clk 0:02:11]}  h5 {[%clk 0:01:39]} 23. Ng6 {[%clk 0:02:09]}  Rh6 {[%clk 0:01:37]} 24. Rxe6+ {[%clk 0:02:05]}  Kf7 {[%clk 0:01:36]} 25. Rdd6 {[%clk 0:02:05]}  Rb8 {[%clk 0:00:05]} 26. Ne5+ {[%clk 0:02:04]}  Kg7 {[%clk 0:00:05]} 27. Rd7+ {[%clk 0:01:55]}  Kg8 {[%clk 0:00:05]} 28. Ng6 {[%clk 0:01:35]}  Rc8 {[%clk 0:00:03]} 29. Ne7+ {[%clk 0:01:32]}  Kf7 {[%clk 0:00:03]} 30. Rxh6 {[%clk 0:01:30]}  Re8 {[%clk 0:00:03]} 31. Rh7+ {[%clk 0:01:30]}  Ke6 {[%clk 0:00:03]} 32. Rxb7 {[%clk 0:01:24]}  Bxe7 {[%clk 0:00:04]} 33. Rhxe7+ {[%clk 0:01:17]}  Rxe7 {[%clk 0:00:04]} 34. Rxe7+ {[%clk 0:01:18]}  Kxe7 {[%clk 0:00:04]} 35. Kd3 {[%clk 0:01:19]}  Kd6 {[%clk 0:00:05]} 36. Kc4 {[%clk 0:01:12]}  Ke5 {[%clk 0:00:04]} 37. Kxc5 {[%clk 0:01:09]}  Ke4 {[%clk 0:00:04]} 38. Kb5 {[%clk 0:01:06]}  Ke3 {[%clk 0:00:04]} 39. c4 {[%clk 0:01:07]}  Kf2 {[%clk 0:00:05]} 40. c5 {[%clk 0:01:07]}  Kxg3 {[%clk 0:00:05]} 41. c6 {[%clk 0:01:08]}  h4 {[%clk 0:00:05]} 42. c7 {[%clk 0:01:09]}  Kxg2 {[%clk 0:00:05]} 43. c8=Q {[%clk 0:01:08]}  g3 {[%clk 0:00:05]} 44. Qc2+ {[%clk 0:01:05]}  Kf3 {[%clk 0:00:05]} 45. Qd1+ {[%clk 0:01:05]}  Kf2 {[%clk 0:00:02]} 46. Qg4 {[%clk 0:01:04]}  g2 {[%clk 0:00:02]} 47. Qxh4+ {[%clk 0:01:05]}  Kf1 {[%clk 0:00:03]} 48. Qf4+ {[%clk 0:01:04]}  Ke2 {[%clk 0:00:03]} 49. Qe4+ {[%clk 0:01:04]}  Kf2 {[%clk 0:00:03]} 50. Qf4+ {[%clk 0:01:04]}  Ke2 {[%clk 0:00:04]} 51. Qg3 {[%clk 0:01:04]}  Kf1 {[%clk 0:00:04]} 52. Qf3+ {[%clk 0:01:04]}  Kg1 {[%clk 0:00:05]} 53. Ka6 {[%clk 0:01:04]}  Kh2 {[%clk 0:00:04]} 54. Qxg2+ {[%clk 0:01:04]}  Kxg2 {[%clk 0:00:05]} 55. Kxa7 {[%clk 0:01:05]}  Kf3 {[%clk 0:00:05]} 56. b4 {[%clk 0:01:05]}  Ke4 {[%clk 0:00:06]} 57. b5 {[%clk 0:01:06]}  Kd5 {[%clk 0:00:07]} 58. b6 {[%clk 0:01:07]}  Kc4 {[%clk 0:00:08]} 59. b7 {[%clk 0:01:06]}  Kb4 {[%clk 0:00:09]} 60. b8=Q+ {[%clk 0:01:06]}  Ka5 {[%clk 0:00:09]} 61. Qe5+ {[%clk 0:01:05]}  Ka4 {[%clk 0:00:09]} 62. Kb6 {[%clk 0:01:05]}  Ka3 {[%clk 0:00:09]} 63. Kb5 {[%clk 0:01:05]}  Kxa2 {[%clk 0:00:09]} 64. Kb4 {[%clk 0:01:04]}  Kb1 {[%clk 0:00:09]} 65. Qh2 {[%clk 0:01:04]} 1-0


[Site "https://www.chess.com"]

[Event "Titled Tuesday Blitz April 4 Early 2023"]
[White "Bilan, Danila"]
[Black "a-z30"]
[WhiteFideId "24161918"]
[WhiteElo "2182"]
[BlackElo "2443"]
[Result "0-1"]
[Round "07"]
[TimeControl "180+2"]
[Date "2023.04.04"]
[WhiteClock "0:00:04"]
[BlackClock "0:00:24"]

1. d4 {[%clk 0:03:00]}  d6 {[%clk 0:03:00]} 2. Nf3 {[%clk 0:03:00]}  Nf6 {[%clk 0:03:01]} 3. g3 {[%clk 0:03:00]}  g6 {[%clk 0:03:02]} 4. Bg2 {[%clk 0:03:00]}  Bg7 {[%clk 0:03:03]} 5. O-O {[%clk 0:03:00]}  O-O {[%clk 0:03:03]} 6. c4 {[%clk 0:03:01]}  c6 {[%clk 0:03:04]} 7. Nc3 {[%clk 0:03:00]}  Bf5 {[%clk 0:03:04]} 8. Re1 {[%clk 0:02:53]}  Ne4 {[%clk 0:03:03]} 9. Qb3 {[%clk 0:02:51]}  Nxc3 {[%clk 0:02:43]} 10. Qxc3 {[%clk 0:02:45]}  c5 {[%clk 0:02:38]} 11. Be3 {[%clk 0:02:34]}  Nc6 {[%clk 0:02:37]} 12. Qd2 {[%clk 0:02:33]}  b6 {[%clk 0:02:05]} 13. Rad1 {[%clk 0:02:18]}  Be4 {[%clk 0:01:58]} 14. d5 {[%clk 0:02:07]}  Bxf3 {[%clk 0:01:47]} 15. exf3 {[%clk 0:01:49]}  Nd4 {[%clk 0:01:40]} 16. Bg5 {[%clk 0:01:39]}  Bf6 {[%clk 0:01:32]} 17. Bh6 {[%clk 0:01:34]}  Re8 {[%clk 0:01:30]} 18. h4 {[%clk 0:00:53]}  Rb8 {[%clk 0:01:28]} 19. h5 {[%clk 0:00:31]}  b5 {[%clk 0:01:26]} 20. b3 {[%clk 0:00:32]}  bxc4 {[%clk 0:01:25]} 21. bxc4 {[%clk 0:00:32]}  Rb4 {[%clk 0:01:25]} 22. Qd3 {[%clk 0:00:25]}  Rb2 {[%clk 0:01:01]} 23. hxg6 {[%clk 0:00:23]}  hxg6 {[%clk 0:01:00]} 24. Rd2 {[%clk 0:00:15]}  Qb6 {[%clk 0:00:53]} 25. f4 {[%clk 0:00:11]}  Rb8 {[%clk 0:00:48]} 26. Bg5 {[%clk 0:00:10]}  Rxd2 {[%clk 0:00:44]} 27. Qxd2 {[%clk 0:00:10]}  Qb2 {[%clk 0:00:45]} 28. Qd3 {[%clk 0:00:07]}  Qc2 {[%clk 0:00:36]} 29. Be4 {[%clk 0:00:06]}  Qxd3 {[%clk 0:00:34]} 30. Bxd3 {[%clk 0:00:06]}  Nf3+ {[%clk 0:00:33]} 31. Kf1 {[%clk 0:00:07]}  Nxe1 {[%clk 0:00:34]} 32. Kxe1 {[%clk 0:00:07]}  Bxg5 {[%clk 0:00:33]} 33. fxg5 {[%clk 0:00:08]}  Rb2 {[%clk 0:00:32]} 34. f4 {[%clk 0:00:06]}  Rxa2 {[%clk 0:00:31]} 35. g4 {[%clk 0:00:06]}  Rb2 {[%clk 0:00:29]} 36. f5 {[%clk 0:00:05]}  Kg7 {[%clk 0:00:28]} 37. Kd1 {[%clk 0:00:04]}  a5 {[%clk 0:00:27]} 38. Kc1 {[%clk 0:00:04]}  Rg2 {[%clk 0:00:24]} 0-1


[Site "https://www.chess.com"]